{"text_format":"3","workbook":"xlsx","n_sheets":2,"sheets":["小学","初中"],"not_rendered":{"defined_names":4},"read":"whole","date_system":"1900"}

{"sheet":"小学","index":0,"n_rows":152,"n_cols":18,"rows_kept":152,"merged":[[1,0,2,17],[3,0,4,0],[3,1,4,1],[3,2,3,17],[5,0,5,1]]}
["附件2"]
["   毕节市七星关区2024年特岗招聘岗位设置计划表\n(国家级小学)"]
[]
["镇乡办","学校名称","设岗计划数"]
[null,null,"设岗计划数合计","语文","数学","英语","物理","化学","生物","地理","历史","道德与法治","音乐","美术","信息科技","体育","心理健康","科学"]
["合计",null,{"$f":"SUM(D6:R6)","v":200},{"$f":"SUM(D7:D152)","v":38},{"$f":"SUM(E7:E152)","v":37},31,0,0,0,0,0,8,15,15,22,25,4,5]
["阿市乡","七星关区阿市乡头庄小学",{"$f":"SUM(D7:R7)","v":1},null,null,1]
["八寨镇","毕节市七星关区八寨镇中心校",1,null,null,1]
["八寨镇","七星关区八寨镇牧朗小学",1,null,1]
["八寨镇","七星关区八寨镇劳动小学",2,1,{"$nulls":10},1]
["八寨镇","七星关区八寨镇金山小学",3,null,1,{"$nulls":7},1,null,null,1]
["八寨镇","七星关区八寨镇岩口小学",2,1,null,1]
["层台镇","七星关区层台镇东沟小学",{"$f":"SUM(D13:R13)","v":2},null,1,{"$nulls":10},1]
["层台镇","七星关区层台镇红岩小学",2,1,null,1]
["层台镇","七星关区层台镇五一小学",1,1]
["层台镇","七星关区层台镇子房小学",1,{"$nulls":9},1]
["层台镇","七星关区层台镇幸福小学",1,1]
["长春堡镇","七星关区长春堡镇三道水小学",2,null,1,{"$nulls":6},1]
["长春堡镇","七星关区长春堡镇松营小学",2,null,1,{"$nulls":10},1]
["岔河镇","七星关区岔河镇戈乐小学",2,null,null,1,{"$nulls":6},1]
["岔河镇","七星关区岔河镇戈乐大寨小学",1,{"$nulls":10},1]
["岔河镇","七星关区岔河镇木来小学",{"$f":"SUM(D22:R22)","v":1},{"$nulls":12},1]
["大河乡","七星关区大河乡鸡姑小学",3,null,1,1,{"$nulls":11},1]
["大河乡","七星关区大河乡拉乐小学",1,{"$nulls":12},1]
["大河乡","七星关区大河乡柯乐小学",2,null,null,1,{"$nulls":5},1]
["大屯乡","七星关区大屯乡烙烘小学",2,null,1,{"$nulls":10},1]
["大屯乡","七星关区大屯乡三官小学",2,1,{"$nulls":9},1]
["大屯乡","七星关区大屯乡左坭小学",1,null,null,1]
["大屯乡","七星关区大屯乡许丽昆希望小学",1,null,1]
["大屯乡","七星关区大屯乡雅木小学",1,null,null,1]
["大屯乡","七星关区大屯乡长中小学",1,null,1]
["大银镇","七星关区大银镇半林小学",1,null,null,1]
["大银镇","七星关区大银镇木瓦小学",1,{"$nulls":11},1]
["大银镇","七星关区大银镇石营小学",1,{"$nulls":9},1]
["大银镇","七星关区大银镇田湾小学",1,{"$nulls":12},1]
["对坡镇","毕节市七星关区对坡镇中心校",2,null,1,{"$nulls":9},1]
["对坡镇","七星关区对坡镇嘎木小学",2,1,1]
["对坡镇","七星关区对坡镇兴乐小学",1,null,null,1]
["对坡镇","七星关区对坡镇建华小学",2,1,1]
["对坡镇","七星关区对坡镇杉寨小学",1,null,1]
["放珠镇","七星关区放珠镇播乐沟小学",1,{"$nulls":9},1]
["放珠镇","七星关区放珠镇永安小学",1,{"$nulls":11},1]
["放珠镇","七星关区放珠镇碗厂小学",1,{"$nulls":10},1]
["放珠镇","七星关区放珠镇天桥小学",1,{"$nulls":8},1]
["海子街镇","毕节市七星关区海子街镇中心校",1,{"$nulls":11},1]
["海子街镇","七星关区海子街镇干沟小学",1,{"$nulls":12},1]
["海子街镇","七星关区海子街镇鸭子塘小学",1,1]
["海子街镇","七星关区海子街镇果乐小学",1,{"$nulls":12},1]
["何官屯镇","七星关区何官屯镇白果小学",1,{"$nulls":10},1]
["何官屯镇","七星关区何官屯镇龙官小学",1,{"$nulls":9},1]
["何官屯镇","七星关区何官屯镇建德小学",1,{"$nulls":12},1]
["何官屯镇","七星关区何官屯镇利民小学",1,1]
["小吉场镇","毕节市七星关区小吉场镇中心校",2,{"$nulls":10},1,null,null,1]
["小吉场镇","七星关区小吉场镇联丰小学",2,{"$nulls":8},1,1]
["小坝镇","毕节市七星关区小坝镇中心校",2,null,1,{"$nulls":7},1]
["小坝镇","七星关区小坝镇王家坝小学",2,null,null,1,{"$nulls":9},1]
["小坝镇","七星关区小坝镇刘华小学",2,{"$nulls":8},1,null,null,1]
["梨树镇","七星关区梨树镇中心校",2,1,null,1]
["梨树镇","七星关区梨树镇二堡小学",{"$f":"SUM(D59:R59)","v":1},{"$nulls":9},1]
["梨树镇","七星关区梨树镇保河小学",2,1,{"$nulls":9},1]
["梨树镇","七星关区梨树镇联合小学",2,1,{"$nulls":10},1]
["梨树镇","七星关区梨树镇甘河小学",2,null,null,1,{"$nulls":9},1]
["亮岩镇","七星关区亮岩镇金华小学",2,{"$nulls":11},1,1]
["亮岩镇","七星关区亮岩镇后川小学",2,{"$nulls":10},1,1]
["亮岩镇","七星关区亮岩镇核桃小学",1,{"$nulls":12},1]
["龙场营镇","毕节市七星关区龙场营镇中心校",1,null,1]
["龙场营镇","七星关区龙场营镇白岩小学",1,null,1]
["龙场营镇","七星关区龙场营镇黄金小学",2,1,1]
["龙场营镇","七星关区龙场营镇安顶小学",2,null,1,{"$nulls":7},1]
["林口镇","毕节市七星关区林口中心校",1,{"$nulls":12},1]
["林口镇","七星关区林口镇新庄小学",1,null,null,1]
["林口镇","七星关区林口镇年丰小学",1,1]
["林口镇","七星关区林口镇大寨小学",1,null,1]
["林口镇","七星关区林口镇渭河小学",1,null,1]
["林口镇","七星关区林口镇平坝小学",1,1]
["林口镇","七星关区林口镇大塘小学",1,1]
["林口镇","七星关区林口镇鸡鸣三省红军小学",1,{"$nulls":10},1]
["普宜镇","毕节市七星关区普宜镇中心校",2,null,null,1,{"$nulls":8},1]
["普宜镇","七星关区普宜镇沙田小学",2,{"$nulls":9},1,1]
["普宜镇","七星关区普宜镇乐都小学",2,{"$nulls":12},1,null,1]
["普宜镇","七星关区普宜镇火马小学",1,{"$nulls":12},1]
["青场镇","七星关区青场镇鲍家小学",{"$f":"SUM(D82:R82)","v":1},{"$nulls":11},1]
["青场镇","七星关区青场镇新沟小学",2,null,1,1]
["清水铺镇","毕节市七星关区清水铺镇中心校",1,{"$nulls":13},1]
["清水铺镇","七星关区清水铺镇高山小学",1,{"$nulls":11},1]
["清水铺镇","七星关区清水铺镇小沟小学",2,1,null,1]
["生机镇","七星关区生机镇峨峰小学",{"$f":"SUM(D87:R87)","v":1},null,null,1]
["生机镇","七星关区生机镇青松小学",1,1]
["生机镇","七星关区生机镇耿官小学",2,{"$nulls":11},1,null,null,1]
["生机镇","七星关区生机镇谢家小学",2,1,{"$nulls":10},1]
["双山镇","毕节市大方县双山镇中心校",1,null,null,1]
["双山镇","大方县双山镇法书小学",1,{"$nulls":14},1]
["双山镇","大方县双山镇联合小学",2,null,null,1,{"$nulls":10},1]
["双山镇","大方县双山镇沙子小学",2,null,null,1,{"$nulls":9},1]
["双山镇","大方县双山镇平原小学",1,{"$nulls":9},1]
["水箐镇","七星关区水箐镇马鞍小学",2,1,{"$nulls":9},1]
["水箐镇","七星关区水箐镇星火小学",1,{"$nulls":11},1]
["水箐镇","七星关区水箐镇梨树小学",1,{"$nulls":8},1]
["水箐镇","七星关区水箐镇新地小学",1,{"$nulls":12},1]
["撒拉溪镇","七星关区撒拉溪镇杨柳小学",2,null,null,1,{"$nulls":5},1]
["撒拉溪镇","七星关区撒拉溪镇兴隆小学",1,{"$nulls":10},1]
["撒拉溪镇","七星关区撒拉溪镇戈座小学",1,{"$nulls":12},1]
["田坝桥镇","七星关区田坝桥镇臭水井小学",2,null,null,1,{"$nulls":8},1]
["田坝桥镇","七星关区田坝桥镇高桥小学",1,{"$nulls":8},1]
["田坝镇","毕节市七星关区田坝镇中心校",1,{"$nulls":9},1]
["田坝镇","七星关区田坝镇茨朗小学",1,{"$nulls":12},1]
["团结乡","七星关区团结乡柱中小学",1,1]
["团结乡","七星关区团结乡营坪小学",2,null,1,{"$nulls":9},1]
["团结乡","七星关区团结乡大渡小学",2,1,1]
["团结乡","七星关区团结乡海嘎小学",1,null,1]
["团结乡","七星关区团结乡草坝小学",2,1,1]
["文阁乡","毕节市大方县文阁乡毛栗小学",1,{"$nulls":12},1]
["文阁乡","毕节市大方县文阁乡以麦小学",1,{"$nulls":11},1]
["文阁乡","毕节市大方县文阁乡田坝小学",1,null,null,1]
["文阁乡","毕节市大方县文阁乡太河小学",1,{"$nulls":10},1]
["文阁乡","毕节市大方县文阁乡中寨小学",1,null,null,1]
["响水乡","毕节市大方县响水乡中心校",{"$f":"SUM(D117:R117)","v":1},{"$nulls":11},1]
["响水乡","毕节市大方县响水乡沙湾小学",1,1]
["鸭池镇","七星关区鸭池镇十八小学",2,1,1]
["鸭池镇","七星关区鸭池镇以河小学",1,{"$nulls":11},1]
["燕子口镇","七星关区燕子口镇阳光小学",1,1]
["燕子口镇","七星关区燕子口镇黄泥小学",1,{"$nulls":10},1]
["燕子口镇","七星关区燕子口镇中沟小学",1,1]
["燕子口镇","七星关区燕子口镇罗福小学",1,{"$nulls":9},1]
["燕子口镇","七星关区燕子口镇龙洞小学",1,1]
["燕子口镇","七星关区燕子口镇沓苏小学",1,null,null,1]
["杨家湾镇","七星关区杨家湾镇戛木二小",2,null,1,{"$nulls":12},1]
["杨家湾镇","七星关区杨家湾镇营盘小学",1,1]
["杨家湾镇","七星关区杨家湾镇戛木小学",1,1]
["杨家湾镇","七星关区杨家湾镇香炉小学",2,1,1]
["野角乡","七星关区野角乡茅坪小学",1,{"$nulls":9},1]
["野角乡","七星关区野角乡半边街小学",1,null,1]
["野角乡","七星关区野角乡大麻塘小学",1,{"$nulls":12},1]
["野角乡","七星关区野角乡沙拉槽小学",2,null,null,1,{"$nulls":7},1]
["阴底乡","七星关区阴底乡水塘小学",1,1]
["阴底乡","七星关区阴底乡路朗小学",{"$f":"SUM(D136:R136)","v":1},null,1]
["阴底乡","七星关区阴底乡罗雄小学",1,1]
["阴底乡","七星关区阴底乡箐口小学",1,1]
["阴底乡","七星关区阴底乡高潮小学",1,null,1]
["阴底乡","七星关区阴底乡对河小学",1,null,1]
["阴底乡","七星关区阴底乡红星小平小学",1,{"$nulls":11},1]
["朱昌镇","毕节市七星关区朱昌镇中心校",1,{"$nulls":13},1]
["朱昌镇","七星关区朱昌镇螺蛳小学",2,1,1]
["朱昌镇","七星关区朱昌镇伍坪小学",1,null,null,1]
["朱昌镇","七星关区朱昌镇花厂小学",3,null,1,1,{"$nulls":9},1]
["朱昌镇","七星关区朱昌镇岩湾小学",1,null,1]
["朱昌镇","七星关区朱昌镇山脚小学",2,1,1]
["竹园乡","毕节市大方县竹园乡中心校",1,{"$nulls":12},1]
["竹园乡","毕节市大方县竹园乡海马宫小学",1,{"$nulls":10},1]
["竹园乡","毕节市大方县竹园乡海马小学",1,{"$nulls":11},1]
["竹园乡","毕节市大方县竹园乡湾子寨小学",2,null,1,1]
["竹园乡","大方县竹园乡箐脚小学",1,1]

{"sheet":"初中","index":1,"n_rows":40,"n_cols":17,"rows_kept":40,"merged":[[1,0,1,16],[2,0,3,0],[2,1,3,1],[2,2,2,16],[4,0,4,1]]}
["附件2"]
["毕节市七星关区2024年特岗招聘岗位设置计划表\n(国家级初中)"]
["镇乡办","学校名称","设岗计划数"]
[null,null,"设岗计划数合计","语文","数学","英语","物理","化学","生物","地理","历史","道德与法治","音乐","美术","信息科技","体育","心理健康"]
["合计",null,{"$f":"SUM(D5:Q5)","v":100},{"$f":"SUM(D6:D40)","v":12},{"$f":"SUM(E6:E40)","v":14},13,7,6,8,5,6,5,5,5,5,6,3]
["阿市乡","毕节市七星关区阿市中学",1,{"$nulls":12},1]
["八寨镇","毕节市七星关区八寨中学",4,1,1,null,1,{"$nulls":7},1]
["长春堡镇","毕节市七星关区长春堡中学",5,1,1,1,1,{"$nulls":8},1]
["层台镇","毕节市七星关区层台中学",2,1,null,1]
["岔河镇","毕节市七星关区岔河中学",4,null,1,1,1,{"$nulls":8},1]
["大屯乡","毕节市七星关区大屯中学",2,{"$nulls":5},1,null,null,1]
["大银镇","毕节市七星关区大银中学",2,{"$nulls":5},1,{"$nulls":5},1]
["对坡镇","毕节市七星关区对坡中学",2,{"$nulls":8},1,null,null,1]
["何官屯镇","毕节市七星关区何官屯中学",4,null,1,1,1,{"$nulls":8},1]
["何官屯镇","毕节市七星关区何官屯二中",3,null,null,1,1,{"$nulls":8},1]
["亮岩镇","毕节市七星关区亮岩中学",4,null,null,1,null,1,null,null,1,1]
["林口镇","毕节市七星关区林口中学",2,1,1]
["龙场营镇","毕节市七星关区龙场营中学",2,{"$nulls":7},1,{"$nulls":3},1]
["普宜镇","毕节市七星关区普宜中学",5,1,null,null,1,null,null,1,1,1]
["青场镇","毕节市七星关区青场中学",2,{"$nulls":4},1,null,null,1]
["清水铺","毕节市七星关区清水铺中学",3,1,{"$nulls":6},1,null,1]
["撒拉溪镇","毕节市七星关区撒拉溪中学",2,null,null,1,{"$nulls":7},1]
["水箐镇","毕节市七星关区水箐中学",2,1,{"$nulls":12},1]
["生机镇","毕节市七星关区生机中学",3,null,1,1,null,1]
["田坝镇","毕节市七星关区田坝中学",5,null,1,null,null,1,{"$nulls":4},1,1,null,null,1]
["团结乡","毕节市七星关区团结中学",3,1,1,{"$nulls":4},1]
["文阁乡","毕节市大方县文阁中学",{"$f":"SUM(D27:Q27)","v":3},null,1,null,null,1,1]
["响水乡","毕节市大方县响水中学",3,{"$nulls":4},1,1,{"$nulls":3},1]
["小坝镇","毕节市七星关区小坝中学",3,null,1,{"$nulls":3},1,1]
["小吉场镇","毕节市七星关区小吉场中学",2,{"$nulls":6},1,{"$nulls":3},1]
["燕子口镇","毕节市七星关区燕子口中学",3,null,null,1,null,null,1,null,null,1]
["杨家湾镇","毕节市七星关区杨家湾二中",1,{"$nulls":7},1]
["杨家湾镇","毕节市七星关区杨家湾中学",2,1,null,1]
["野角乡","毕节市七星关区野角中学",2,null,1,{"$nulls":8},1]
["阴底乡","毕节市七星关区阴底中学",3,1,1,{"$nulls":3},1]
["双山镇","毕节市大方县双山镇双山中学",2,1,null,1]
["双山镇","毕节市大方县双山镇中路中学",5,null,1,null,1,null,1,1,null,null,1]
["朱昌镇","毕节市七星关区朱昌二中",5,1,1,1,{"$nulls":9},1,1]
["朱昌镇","毕节市七星关区朱昌中学",2,{"$nulls":9},1,1]
["竹园乡","毕节市大方县竹园中学",2,null,null,1,{"$nulls":8},1]